bitfinex/quotes_SOLUSD_20220208
["timestamp","ask_amount","ask_price","bid_price","bid_amount"]
[1644311690255,13.2978,112.87,112.73,13.44350797]
[1644311690451,13.2978,112.87,112.73,19.44350797]
[1644311690652,13.2978,112.87,112.73,21.55126346]
[1644311690855,15.40555549,112.87,112.73,16.55]
[1644311691054,15.40555549,112.87,112.73,10.55]
[1644311691352,13.2978,112.87,112.73,10.55]
[1644311691977,13.2978,112.87,112.74,2.10775549]
[1644311692175,13.2978,112.87,112.74,8.10775549]
[1644311692386,13.2951,112.9,112.75,10.55]
[1644311692575,57.6925,112.96,112.75,16.55]
[1644311692775,24.7422,112.97,112.76,13.14017463]
[1644311692978,0.31858727,112.95,112.77,10.55]
[1644311693176,0.31858727,112.95,112.77,6.0]
[1644311693378,13.7318,112.92,112.71,12.1218413]
[1644311693581,13.7318,112.92,112.71,12.52399]
[1644311693584,0.44,112.87,112.71,12.52399]
[1644311693776,16.318,112.87,112.71,17.07399]
[1644311693975,0.44,112.85,112.71,17.07399]
[1644311694177,2.10775549,112.86,112.71,6.52399]
[1644311694178,5.44,112.83,112.71,6.52399]
[1644311694377,13.918,112.83,112.71,6.52399]
[1644311694577,8.728,112.83,112.71,6.52399]
[1644311694777,2.10775549,112.82,112.71,6.52399]
[1644311695180,13.3093,112.79,112.71,6.52399]
[1644311695582,13.5593,112.79,112.71,6.52399]
[1644311697180,23.7763,112.79,112.71,6.52399]
[1644311697579,13.5593,112.79,112.71,6.52399]
[1644311697976,13.5593,112.79,112.67,2.10775549]
[1644311697977,13.5593,112.79,112.66,10.55]
[1644311698177,13.5593,112.79,112.66,17.07688]
[1644311698377,19.5593,112.79,112.66,19.18463549]
[1644311698580,13.5593,112.79,112.66,18.65775549]
[1644311698779,13.5593,112.79,112.66,10.55]
[1644311699284,13.5593,112.79,112.66,12.65775549]
[1644311699488,19.9993,112.79,112.66,10.55]
[1644311699681,0.44,112.77,112.65,383.87910584]
[1644311699879,13.3137,112.74,112.65,383.87910584]
[1644311700079,13.3137,112.74,112.66,2.10775549]
[1644311700282,44.379,112.77,112.66,2.10775549]
[1644311700480,44.379,112.77,112.65,383.87910584]
[1644311701091,44.379,112.77,112.65,385.98686133]
[1644311701282,44.379,112.77,112.65,383.87910584]
[1644311701583,44.379,112.77,112.65,2.10775549]
[1644311701783,13.3113,112.76,112.65,2.10775549]
[1644311702383,13.3113,112.76,112.65,8.10775549]
[1644311702580,13.3113,112.76,112.65,6.0]
[1644311703082,13.3113,112.76,112.63,0.11400112]
[1644311703282,15.41905549,112.76,112.63,0.11400112]
[1644311703580,19.5613,112.76,112.63,2.22175661]
[1644311704081,13.3113,112.76,112.63,8.22175661]
[1644311704581,13.3096,112.79,112.64,10.55]
[1644311704780,44.3542,112.84,112.64,37.17114352]
[1644311704981,25.309,112.85,112.64,37.17114352]
[1644311704982,24.869,112.85,112.65,27.69685628]
[1644311705183,6.41574,112.84,112.66,10.55]
[1644311705381,6.41574,112.84,112.66,99.22539901]
[1644311705682,13.3043,112.83,112.67,2.10775549]
[1644311705882,13.3043,112.83,112.67,115.20775549]
[1644311706083,0.44,112.8,112.63,46.51690112]
[1644311706382,9.385,112.8,112.64,10.55]
[1644311706581,9.385,112.8,112.64,6.0]
[1644311706582,22.04275549,112.8,112.64,6.0]
[1644311706781,22.29275549,112.8,112.67,475.47898385]
[1644311707185,13.3119,112.77,112.67,475.47898385]
[1644311707385,10.99,112.76,112.63,0.11400112]
[1644311707583,0.44,112.72,112.63,0.11400112]
[1644311707784,10.657,112.72,112.63,0.11400112]
[1644311707983,15.657,112.72,112.63,0.11400112]
[1644311708283,17.76475549,112.72,112.63,0.11400112]
[1644311708686,15.657,112.72,112.63,0.11400112]
[1644311708888,10.217,112.72,112.63,0.11400112]
[1644311709085,10.55,112.74,112.63,0.11400112]
[1644311709292,0.32468362,112.69,112.63,0.11400112]
[1644311709486,0.44,112.67,112.6,0.22800224]
[1644311709886,5.44,112.66,112.6,0.22800224]
[1644311710087,2.10775549,112.66,112.6,0.22800224]
[1644311710387,0.44,112.69,112.6,0.22800224]
[1644311710588,0.44,112.67,112.6,0.22800224]
[1644311710788,10.55,112.66,112.6,0.22800224]
[1644311710988,0.31163839,112.7,112.6,0.22800224]
[1644311710989,10.55,112.69,112.6,0.22800224]
[1644311711189,0.44,112.7,112.6,0.22800224]
[1644311711391,10.99,112.7,112.6,0.22800224]
[1644311711788,0.44,112.66,112.6,0.22800224]
[1644311712391,44.8631,112.69,112.6,0.22800224]
[1644311712590,55.4131,112.69,112.6,0.22800224]
[1644311712789,10.55,112.69,112.6,0.22800224]
[1644311712990,13.3243,112.7,112.6,0.22800224]
[1644311713592,13.7643,112.7,112.6,0.22800224]
[1644311714093,20.43004,112.7,112.6,0.22800224]
[1644311714290,13.09775549,112.69,112.6,0.22800224]
[1644311714490,13.3276,112.67,112.6,0.22800224]
[1644311714691,23.8776,112.67,112.6,0.22800224]
[1644311714893,0.44,112.66,112.6,0.22800224]
[1644311715192,10.55,112.65,112.6,0.22800224]
[1644311715691,11.24,112.65,112.6,0.22800224]
[1644311716292,24.5711,112.65,112.6,0.22800224]
[1644311716695,0.44,112.63,112.6,0.22800224]
[1644311716891,3.62400799,112.62,112.6,0.22800224]
[1644311717092,26.23885549,112.65,112.6,0.22800224]
[1644311717293,0.44,112.66,112.6,0.22800224]
[1644311717492,13.3276,112.68,112.6,0.22800224]
[1644311717691,10.99,112.67,112.6,0.22800224]
[1644311718291,0.44,112.66,112.6,0.22800224]
[1644311718492,24.3201,112.66,112.6,0.22800224]
[1644311718694,0.44,112.63,112.6,0.22800224]
[1644311719095,0.44,112.61,112.6,0.22800224]
[1644311719300,28.79421147,112.66,112.6,0.22800224]
[1644311719495,10.55,112.66,112.6,0.22800224]
[1644311719896,2.10775549,112.65,112.6,0.22800224]
[1644311720097,10.55,112.64,112.6,0.22800224]
[1644311721101,12.65775549,112.64,112.6,0.22800224]
[1644311721300,10.55,112.64,112.6,0.22800224]
[1644311721499,2.10775549,112.63,112.6,0.22800224]
[1644311721701,10.55,112.62,112.6,0.22800224]
[1644311721903,23.8852,112.62,112.6,0.45600448]
[1644311722100,2.10775549,112.61,112.52,0.4845014]
[1644311722301,10.55,112.6,112.52,0.4845014]
[1644311722501,22.984,112.6,112.52,0.4845014]
[1644311722699,25.34175549,112.6,112.52,0.4845014]
[1644311723302,36.321,112.6,112.52,6.0505]
[1644311723600,10.55,112.6,112.52,6.0505]
[1644311724304,10.55,112.64,112.52,6.0505]
[1644311725008,2.10775549,112.63,112.52,6.0505]
[1644311725204,0.32193885,112.59,112.52,6.0505]
[1644311725403,13.3413,112.57,112.52,6.0505]
[1644311725704,5.0,112.54,112.47,1.17739082]
[1644311725904,10.55,112.53,112.47,1.17739082]
[1644311726103,57.14945549,112.53,112.47,1.17739082]
[1644311726305,62.39945549,112.53,112.36,1.24637017]
[1644311726505,60.2917,112.53,112.37,6.54373]
[1644311726707,13.3475,112.52,112.37,2.10775549]
[1644311726908,10.55,112.51,112.37,2.10775549]
[1644311727110,23.044,112.51,112.36,1.24637017]
[1644311727308,23.044,112.51,112.34,0.74637017]
[1644311727309,25.40175549,112.51,112.34,0.74637017]
[1644311727507,25.40175549,112.51,112.32,0.55676112]
[1644311727707,25.40175549,112.51,112.32,7.10340112]
[1644311728110,13.3481,112.5,112.32,7.10340112]
[1644311728410,10.55,112.49,112.32,0.55676112]
[1644311728610,0.31531495,112.47,112.32,0.55676112]
[1644311728811,15.55,112.46,112.32,0.55676112]
[1644311729008,10.55,112.46,112.32,0.55676112]
[1644311729209,16.8,112.46,112.32,0.55676112]
[1644311729408,16.55,112.46,112.32,0.55676112]
[1644311730410,16.55,112.46,112.32,2.66451661]
[1644311730609,16.55,112.46,112.32,6.55676112]
[1644311730815,29.9052,112.46,112.32,0.55676112]
[1644311731813,2.10775549,112.45,112.32,0.55676112]
[1644311732014,10.55,112.44,112.32,0.55676112]
[1644311732411,26.01485549,112.44,112.32,0.55676112]
[1644311732812,24.1571,112.44,112.32,0.55676112]
[1644311733527,2.10775549,112.43,112.32,0.55676112]
[1644311733730,23.9099,112.42,112.32,0.55676112]
[1644311733929,10.55,112.42,112.32,0.55676112]
[1644311734134,10.8,112.42,112.32,0.55676112]
[1644311734529,10.55,112.42,112.32,0.55676112]
[1644311734735,10.55,112.42,112.29,500.4515554]
[1644311734736,0.31544091,112.37,112.29,500.4515554]
[1644311734937,10.86544091,112.37,112.29,500.4515554]
[1644311735138,10.55,112.37,112.29,500.4515554]
[1644311735333,2.10775549,112.36,112.29,500.4515554]
[1644311735533,10.55,112.36,112.29,433.4783554]
[1644311735737,11.11407482,112.36,112.29,388.9136554]
[1644311735940,36.47869148,112.36,112.29,388.9136554]
[1644311736332,16.8,112.36,112.29,388.9136554]
[1644311736732,32.27515549,112.36,112.29,388.9136554]
[1644311736934,49.84609148,112.36,112.29,388.9136554]
[1644311737134,36.93833599,112.36,112.29,388.9136554]
[1644311737341,19.3674,112.36,112.29,388.9136554]
[1644311737542,6.0,112.36,112.29,388.9136554]
[1644311737735,10.55,112.35,112.29,388.9136554]
[1644311738936,53.45405604,112.35,112.29,388.9136554]
[1644311739137,41.48871376,112.35,112.29,388.9136554]
[1644311739337,30.68388937,112.38,112.29,388.9136554]
[1644311739537,2.10775549,112.4,112.29,388.9136554]
[1644311739737,10.55,112.39,112.29,388.9136554]
[1644311739942,10.55,112.42,112.29,388.9136554]
[1644311740140,10.55,112.45,112.29,399.0526554]
[1644311740338,34.17493188,112.49,112.29,399.0526554]
[1644311740339,5.0,112.48,112.29,399.0526554]
[1644311740538,10.55,112.47,112.29,415.3526554]
[1644311740739,10.55,112.47,112.29,444.5314554]
[1644311740938,10.55,112.47,112.29,434.6424554]
[1644311741141,2.10775549,112.46,112.29,434.6424554]
[1644311741341,10.55,112.45,112.29,434.6424554]
[1644311741541,10.55,112.45,112.29,434.8924554]
[1644311741740,10.55,112.45,112.29,440.8924554]
[1644311743349,10.55,112.45,112.29,453.55021089]
[1644311743543,10.55,112.49,112.29,451.4424554]
[1644311743742,10.55,112.49,112.3,24.6939]
[1644311743943,12.65775549,112.49,112.3,24.6939]
[1644311744242,12.65775549,112.49,112.3,30.6939]
[1644311744442,10.55,112.49,112.31,2.10775549]
[1644311744643,12.65775549,112.49,112.31,8.10775549]
[1644311744844,28.40566395,112.48,112.31,6.0]
[1644311745052,10.55,112.47,112.29,534.8861554]
[1644311745446,6.0,112.48,112.3,12.65775549]
[1644311745645,6.0,112.48,112.3,23.42975549]
[1644311746047,10.55,112.5,112.31,2.10775549]
[1644311746246,9.26848221,112.55,112.31,25.19455549]
[1644311746447,10.55,112.55,112.32,17.9494937]
[1644311746646,10.55,112.62,112.34,132.25]
[1644311746848,15.74152149,112.6,112.35,82.1593]
[1644311747050,13.633766,112.6,112.39,13.337]
[1644311747247,3.083766,112.6,112.4,161.8284]
[1644311747447,3.083766,112.6,112.4,167.2684]
[1644311747754,3.083766,112.6,112.41,2.10775549]
[1644311747951,2.10775549,112.63,112.41,2.54775549]
[1644311748148,2.10775549,112.63,112.42,97.0577]
[1644311748349,13.3314,112.63,112.45,13.3299]
[1644311748552,13.3314,112.63,112.46,10.55]
[1644311748749,2.10775549,112.66,112.46,10.8]
[1644311748951,10.55,112.67,112.47,71.199]
[1644311749151,12.65775549,112.67,112.47,79.30675549]
[1644311749349,10.55,112.67,112.48,12.65775549]
[1644311749550,13.3274,112.66,112.48,12.65775549]
[1644311749752,13.3274,112.66,112.49,2.10775549]
[1644311749950,44.4143,112.71,112.49,2.10775549]
[1644311750151,10.55,112.69,112.5,112.8494]
[1644311750358,2.10775549,112.66,112.5,112.8494]
[1644311750550,10.55,112.66,112.5,119.0994]
[1644311751152,23.874,112.69,112.51,2.10775549]
[1644311751351,13.324,112.69,112.51,36.40355549]
[1644311751570,19.324,112.69,112.51,42.40355549]
[1644311752052,30.42365807,112.69,112.51,25.85355549]
[1644311752251,28.31590258,112.69,112.51,23.4958]
[1644311752451,6.0,112.69,112.52,10.55]
[1644311752652,12.65775549,112.71,112.52,16.55]
[1644311752854,12.65775549,112.71,112.52,63.5037]
[1644311753254,2.10775549,112.73,112.53,2.10775549]
[1644311753454,9.12368658,112.75,112.58,13.3135]
[1644311753455,0.131784,112.75,112.58,13.3135]
[1644311753653,0.131784,112.75,112.59,161.4037]
[1644311753854,0.131784,112.75,112.59,163.76145549]
[1644311754053,0.131784,112.75,112.6,2.10775549]
[1644311754254,0.131784,112.75,112.61,34.7799]
[1644311754554,0.131784,112.75,112.62,13.3082]
[1644311754753,0.30746912,112.89,112.64,98.0]
[1644311754960,2.67765651,112.89,112.65,10.55]
[1644311755156,0.003766,112.82,112.75,0.131784]
[1644311755356,0.003766,112.82,112.76,10.55]
[1644311755554,0.00746912,112.86,112.76,10.55]
[1644311755755,0.00746912,112.86,112.78,0.44]
[1644311755956,0.00746912,112.86,112.79,10.55]
[1644311756153,0.00746912,112.86,112.8,0.44]
[1644311756355,0.00746912,112.86,112.79,8.35775549]
[1644311756554,0.61493824,112.92,112.81,10.55]
[1644311756754,1.85400424,112.92,112.81,10.55]
[1644311756956,1.85400424,112.92,112.81,16.55]
[1644311757255,3.96175973,112.92,112.81,10.55]
[1644311758060,1.85400424,112.92,112.81,10.55]
[1644311758656,2.10775549,112.95,112.81,10.55]
[1644311758860,2.10775549,112.92,112.81,10.55]
[1644311759060,2.10775549,112.96,112.81,10.55]
[1644311759285,15.39775549,113.0,112.82,2.10775549]
[1644311759459,6.0,112.96,112.82,2.10775549]
[1644311759661,6.0,112.96,112.82,8.35775549]
[1644311759860,2.10775549,113.02,112.83,10.55]
[1644311760260,13.2881,113.01,112.83,10.55]
[1644311760663,12.14029357,113.0,112.81,48.2237]
[1644311760863,12.14029357,113.0,112.81,54.2237]
[1644311761061,2.10775549,112.99,112.81,54.2237]
[1644311761261,16.36503644,112.99,112.81,54.2237]
[1644311761460,26.91503644,112.99,112.81,64.7737]
[1644311761662,2.10775549,112.98,112.81,64.7737]
[1644311761860,13.293,112.97,112.81,64.7737]
[1644311762363,10.55,113.01,112.81,64.7737]
[1644311762561,3.74,113.03,112.82,2.10775549]
[1644311762763,3.74,113.03,112.83,10.55]
[1644311763064,3.74,113.03,112.83,63.1137]
[1644311763261,2.10775549,113.02,112.84,2.10775549]
[1644311763461,2.10775549,113.02,112.85,10.55]
[1644311763660,8.10775549,113.02,112.86,10.55]
[1644311763861,15.39205549,113.05,112.86,25.07575549]
[1644311764061,0.59624808,113.09,112.86,31.07575549]
[1644311764262,0.59624808,113.09,112.88,131.81]
[1644311764461,0.59624808,113.09,112.89,10.55]
[1644311764660,0.59624808,113.09,112.89,18.65775549]
[1644311764862,2.70400357,113.09,112.89,18.90775549]
[1644311765062,0.59624808,113.09,112.9,2.10775549]
[1644311765263,6.59624808,113.09,112.91,10.55]
[1644311765463,2.70400357,113.09,112.91,10.55]
[1644311765666,2.70400357,113.09,112.91,16.55]
[1644311765863,6.59624808,113.09,112.91,16.8]
[1644311766068,8.70400357,113.09,112.91,16.55]
[1644311766265,8.70400357,113.09,112.91,10.55]
[1644311766466,11.61573275,113.08,112.91,10.55]
[1644311766870,2.10775549,113.07,112.91,10.55]
[1644311767063,2.70400357,113.09,112.91,10.55]
[1644311767264,2.95400357,113.09,112.91,10.55]
[1644311767465,2.10775549,113.07,112.91,10.55]
[1644311767865,2.35775549,113.07,112.91,10.55]
[1644311768076,15.63995549,113.07,112.91,10.55]
[1644311768267,15.63995549,113.07,112.88,10.55]
[1644311768268,0.31711407,113.04,112.88,10.55]
[1644311768468,0.31711407,113.04,112.87,46.49]
[1644311768765,2.10775549,113.03,112.87,57.04]
[1644311769766,10.55,113.06,112.87,57.04]
[1644311769967,2.10775549,113.05,112.87,67.919]
[1644311770166,2.10775549,113.05,112.87,76.02675549]
[1644311770367,6.0,113.07,112.87,76.02675549]
[1644311770569,6.0,113.07,112.88,24.0456]
[1644311770769,6.0,113.07,112.89,10.55]
[1644311770967,6.0,113.07,112.89,12.65775549]
[1644311771167,0.03036508,113.11,112.9,2.10775549]
[1644311771368,0.03036508,113.15,112.91,10.55]
[1644311771569,0.03036508,113.15,112.92,131.81]
[1644311771767,0.03036508,113.15,112.93,84.2828]
[1644311771969,0.03036508,113.15,112.93,96.34455549]
[1644311772167,2.10775549,113.13,112.93,102.59455549]
[1644311772468,0.03036508,113.12,112.93,102.59455549]
[1644311772667,0.03036508,113.12,112.94,2.10775549]
[1644311772968,0.03036508,113.12,112.95,10.55]
[1644311773169,0.03036508,113.14,112.95,64.5821]
[1644311773370,0.0043935,112.99,112.96,2.10775549]
[1644311773567,0.0043935,112.99,112.97,40.62299993]
[1644311773767,0.0043935,112.99,112.98,24.4261]
[1644311773968,0.0043935,112.99,112.98,34.9761]
[1644311774668,0.0043935,112.99,112.98,42.9691]
[1644311774867,0.0043935,112.99,112.98,45.07685549]
[1644311775068,0.0043935,112.99,112.98,42.9691]
[1644311775274,0.0043935,112.99,112.98,34.9761]
[1644311777070,0.0043935,112.99,112.98,24.4261]
[1644311777272,0.0043935,112.99,112.98,34.9761]
[1644311777674,0.03036508,113.12,112.98,37.08385549]
[1644311777872,0.03036508,113.12,112.98,60.44825542]
[1644311778271,0.03036508,113.12,112.98,30.49049993]
[1644311778473,0.03036508,113.15,112.99,45.7624]
[1644311778670,7.13348366,113.16,112.99,45.7624]
[1644311778671,0.03036508,113.12,112.99,45.7624]
[1644311778872,0.03036508,113.14,113.0,10.55]
[1644311779072,0.03036508,113.15,113.0,27.69275549]
[1644311779271,0.03036508,113.14,113.01,24.91175549]
[1644311779473,0.03036508,113.15,113.02,10.55]
[1644311779677,0.03036508,113.15,113.02,18.65775549]
[1644311779973,0.03036508,113.15,113.03,2.10775549]
[1644311780173,1.13348366,113.16,113.04,10.55]
[1644311780374,1.16384874,113.16,113.04,10.55]
[1644311780575,1.13348366,113.16,113.04,10.55]
[1644311781376,7.13348366,113.16,113.04,10.55]
[1644311781577,1.13348366,113.16,113.04,10.55]
[1644311782179,1.38348366,113.16,113.04,10.55]
[1644311782382,1.13348366,113.16,113.04,10.55]
[1644311782580,1.38348366,113.16,113.04,10.55]
[1644311782980,1.38348366,113.16,113.05,2.10775549]
[1644311783179,1.38348366,113.16,113.05,12.65775549]
[1644311783379,1.38348366,113.16,113.05,10.55]
[1644311783980,1.13348366,113.16,113.05,10.55]
[1644311784181,1.13348366,113.16,113.05,12.90775549]
[1644311784581,7.13348366,113.16,113.05,10.55]
[1644311784781,1.13348366,113.16,113.05,10.55]
[1644311784981,7.13348366,113.16,113.05,10.55]
[1644311785183,1.13348366,113.16,113.05,10.55]
[1644311785384,5.61142654,113.16,113.03,71.052]
[1644311785587,4.76566615,113.15,113.03,24.2321]
[1644311786085,2.10775549,113.14,113.04,10.55]
[1644311786287,1.16384874,113.16,113.04,10.55]
[1644311786486,7.54922366,113.16,113.04,57.4567]
[1644311787084,9.91941105,113.16,113.04,57.4567]
[1644311787387,7.54922366,113.16,113.04,57.4567]
[1644311788184,7.79922366,113.16,113.04,57.4567]
[1644311788385,7.79922366,113.16,113.04,59.56445549]
[1644311788588,7.54922366,113.16,113.04,71.79045549]
[1644311788785,0.00922366,113.16,113.04,84.06079753]
[1644311788985,0.00922366,113.16,113.05,13.15779074]
[1644311789186,0.527136,113.2,113.06,33.7536]
[1644311789413,0.03036508,113.19,113.06,180.97515864]
[1644311789603,0.527136,113.2,113.07,2.10775549]
[1644311789804,0.527136,113.2,113.08,10.55]
[1644311790003,0.55750108,113.2,113.09,10.55]
[1644311790204,2.92768847,113.2,113.09,10.55]
[1644311790404,0.527136,113.2,113.09,10.55]
[1644311791704,2.89732339,113.2,113.09,10.55]
[1644311791903,0.527136,113.2,113.09,10.55]
[1644311792106,0.777136,113.2,113.09,10.55]
[1644311792304,2.89732339,113.2,113.09,10.55]
[1644311792504,0.527136,113.2,113.09,10.55]
[1644311793205,2.89732339,113.2,113.09,10.55]
[1644311793406,0.527136,113.2,113.09,10.55]
[1644311793606,0.527136,113.2,113.09,10.8]
[1644311794205,0.527136,113.2,113.09,10.55]
[1644311796208,0.527136,113.2,113.09,10.8]
[1644311796408,0.527136,113.2,113.09,10.55]
[1644311796805,0.527136,113.2,113.09,10.8]
[1644311797406,0.527136,113.2,113.09,10.55]
[1644311798408,0.527136,113.2,113.09,16.55]
[1644311798615,2.40063358,113.24,113.12,0.44]
[1644311798616,0.03044619,113.24,113.12,0.44]
[1644311798809,8.111e-05,113.24,113.13,10.55]
[1644311799018,2.40055247,113.27,113.13,10.55]
[1644311799209,2.40055247,113.27,113.13,16.8]
[1644311799210,2.37018739,113.27,113.13,16.8]
[1644311799512,2.41206509,113.27,113.13,18.90775549]
[1644311799711,2.37018739,113.28,113.13,16.8]
[1644311799909,3.55528109,113.3,113.13,16.8]
[1644311799910,2.40055247,113.27,113.13,16.8]
[1644311800111,2.37018739,113.27,113.13,16.8]
[1644311800314,2.37018739,113.28,113.14,2.10775549]
[1644311800512,8.40055247,113.27,113.15,59.8904]
[1644311800711,8.37018739,113.27,113.16,10.55]
[1644311801112,6.0,113.27,113.16,10.8]
[1644311801317,8.37018739,113.27,113.16,10.8]
[1644311801615,8.37018739,113.27,113.16,10.55]
[1644311801812,4.78548172,113.26,113.16,10.55]
[1644311802013,2.37018739,113.25,113.16,10.55]
[1644311802213,2.37018739,113.24,113.15,49.3404]
[1644311802512,2.62018739,113.25,113.15,59.8904]
[1644311802713,2.62018739,113.25,113.15,60.1404]
[1644311802912,0.25,113.25,113.15,59.8904]
[1644311803117,2.37018739,113.25,113.15,59.8904]
[1644311803315,2.37018739,113.26,113.15,59.8904]
[1644311803514,2.37018739,113.27,113.15,59.8904]
[1644311803715,0.03036508,113.28,113.15,65.8904]
[1644311803914,2.40055247,113.29,113.15,73.135]
[1644311804119,4.78810542,113.28,113.15,79.135]
[1644311804319,4.78810542,113.28,113.15,79.385]
[1644311804517,2.37018739,113.29,113.15,79.385]
[1644311804719,2.37018739,113.29,113.15,65.8904]
[1644311804917,2.37018739,113.27,113.15,65.8904]
[1644311805120,2.37018739,113.24,113.11,23.5385]
[1644311805318,2.37018739,113.22,113.11,23.5385]
[1644311805720,8.37018739,113.22,113.11,23.5385]
[1644311806019,2.37018739,113.23,113.11,23.5385]
[1644311806318,2.62018739,113.23,113.12,10.55]
[1644311806517,6.25,113.23,113.12,10.55]
[1644311806921,0.25,113.23,113.12,10.55]
[1644311807120,4.79093248,113.22,113.11,23.5385]
[1644311807320,2.37018739,113.21,113.11,23.5385]
[1644311807523,4.79093248,113.21,113.11,30.03942]
[1644311807721,5.04093248,113.21,113.11,30.03942]
[1644311807920,2.62018739,113.21,113.11,30.03942]
[1644311808522,4.7915113,113.2,113.11,30.03942]
[1644311808720,5.0415113,113.2,113.11,30.03942]
[1644311808924,2.62018739,113.2,113.11,30.03942]
[1644311809325,8.62018739,113.2,113.11,30.03942]
[1644311809822,8.37018739,113.2,113.11,30.03942]
[1644311810223,2.37018739,113.2,113.11,30.03942]
[1644311810624,2.37018739,113.21,113.11,30.03942]
[1644311811028,2.37018739,113.2,113.11,30.03942]
[1644311811229,4.79229956,113.2,113.11,30.03942]
[1644311811625,2.37018739,113.19,113.11,30.03942]
[1644311812029,8.37018739,113.2,113.11,30.03942]
[1644311812625,4.79427264,113.19,113.11,30.03942]
[1644311813025,5.04427264,113.19,113.11,6.50092]
[1644311813226,16.32427264,113.19,113.11,6.50092]
[1644311813427,16.32427264,113.19,113.06,10.55]
[1644311813428,4.79427264,113.18,113.05,79.0442]
[1644311813827,2.37018739,113.17,113.05,79.0442]
[1644311814025,4.79427264,113.17,113.05,79.0442]
[1644311814429,0.00427264,113.17,113.06,27.5681853]
[1644311814627,0.00427264,113.2,113.06,56.54632326]
[1644311814828,0.03036508,113.19,113.08,0.44]
[1644311815128,0.03036508,113.19,113.09,40.96232326]
[1644311815429,0.03036508,113.23,113.09,39.10456777]
[1644311815640,0.03036508,113.26,113.1,2.10775549]
[1644311815827,0.03036508,113.26,113.12,13.2523]
[1644311816027,0.03036508,113.26,113.13,10.55]
[1644311816231,3.55528109,113.27,113.13,18.90775549]
[1644311816427,3.58564617,113.28,113.13,18.90775549]
[1644311816628,3.55528109,113.28,113.13,16.8]
[1644311817428,3.55528109,113.28,113.13,16.55]
[1644311817727,3.55528109,113.27,113.13,16.55]
[1644311817927,3.55528109,113.27,113.13,10.55]
[1644311818131,3.58564617,113.27,113.12,70.8281]
[1644311818329,3.83564617,113.27,113.12,70.8281]
[1644311818528,3.55528109,113.24,113.12,70.8281]
[1644311818730,16.81108109,113.24,113.12,70.8281]
[1644311818928,3.55528109,113.24,113.12,81.3781]
[1644311819130,3.55528109,113.25,113.12,81.3781]
[1644311819532,3.55528109,113.25,113.05,79.0442]
[1644311819829,13.26,113.2,113.07,23.8094]
[1644311820029,13.26,113.2,113.07,10.55]
[1644311820228,13.51,113.2,113.07,10.55]
[1644311820430,13.54036508,113.2,113.07,10.55]
[1644311821030,0.28036508,113.2,113.07,23.8084]
[1644311821229,17.09254617,113.23,113.07,23.8084]
[1644311821431,0.03036508,113.22,113.07,23.8084]
[1644311821631,8.87636508,113.22,113.07,23.8084]
[1644311821830,9.12636508,113.22,113.07,10.55]
[1644311822232,3.55528109,113.2,113.07,10.55]
[1644311822630,3.55528109,113.21,113.07,10.55]
[1644311822831,3.55528109,113.21,113.07,12.65775549]
[1644311823060,0.03036508,113.22,113.07,12.65775549]
[1644311823434,0.03036508,113.22,113.11,13.2538]
[1644311823733,16.80988109,113.24,113.11,23.8038]
[1644311823934,0.03036508,113.23,113.11,23.8038]
[1644311824133,22.80988109,113.24,113.11,23.8038]
[1644311825033,22.80988109,113.24,113.11,10.55]
[1644311825234,27.68531966,113.24,113.11,10.55]
[1644311825439,2.10775549,113.23,113.11,10.55]
[1644311825636,13.2575,113.22,113.11,10.55]
[1644311825935,13.5075,113.22,113.11,10.55]
[1644311826137,0.03036508,113.23,113.11,10.55]
[1644311826335,3.58564617,113.24,113.12,2.10775549]
[1644311826536,3.55528109,113.25,113.13,10.55]
[1644311826736,16.80878109,113.25,113.13,10.55]
[1644311826936,3.55528109,113.25,113.13,20.881]
[1644311827535,3.55528109,113.26,113.13,20.881]
[1644311827736,3.55528109,113.26,113.13,34.1323]